bitfinex-derivatives/quotes_ETHF0:USTF0_20210702
["timestamp","ask_amount","ask_price","bid_price","bid_amount"]
[1625244961998,3.77404656,2109.4,2107.3,56.07137]
[1625244962150,2.77404656,2109.4,2107.3,56.07137]
[1625244962249,2.20527,2108.1,2107.9,2.20527]
[1625244962352,2.20527,2108.1,2107.9,4.72407]
[1625244962648,2.20527,2108.1,2107.9,2.5188]
[1625244963905,2.20527,2108.3,2107.9,2.5188]
[1625244964304,2.20527,2108.6,2108.2,4.41054]
[1625244965521,2.20527,2108.8,2108.2,4.41054]
[1625244965917,2.20527,2108.8,2108.2,47.54604]
[1625244966227,4.41054,2108.8,2108.7,2.20527]
[1625244966327,4.41054,2108.8,2108.7,4.77057]
[1625244966528,4.41054,2108.8,2108.7,2.5653]
[1625244967078,56.02884,2108.8,2108.7,2.5653]
[1625244967688,56.02884,2108.8,2107.5,1.0]
[1625244967787,59.27724,2108.8,2107.4,15.8385]
[1625244968290,4.41054,2107.5,2107.1,2.20527]
[1625244968436,7.95174,2107.5,2107.1,2.20527]
[1625244969235,57.8517,2107.2,2107.1,2.20527]
[1625244969338,57.8517,2107.2,2106.9,2.20527]
[1625244969339,57.8517,2107.2,2106.0,1.0]
[1625244969437,57.8517,2107.2,2105.5,2.7765126]
[1625244969687,57.8517,2107.2,2105.4,2.77682253]
[1625244970088,57.8517,2107.2,2105.3,3.77697603]
[1625244970340,2.20527,2106.6,2106.0,2.20527]
[1625244970439,5.47457,2106.6,2106.0,2.20527]
[1625244974301,4.41054,2106.1,2106.0,2.20527]
[1625244974450,7.10964,2106.1,2106.0,2.20527]
[1625244974801,4.90437,2106.1,2106.0,2.20527]
[1625244975151,2.6991,2106.1,2106.0,2.20527]
[1625244976005,60.8885,2106.9,2106.0,2.20527]
[1625244976104,3.4403,2106.9,2106.0,2.20527]
[1625244976204,1.0,2107.8,2106.0,5.83317]
[1625244976304,2.20527,2106.5,2106.4,2.20527]
[1625244976855,67.0609,2107.9,2106.4,2.20527]
[1625244977258,1.0,2108.7,2106.4,2.20527]
[1625244977659,52.7183,2108.8,2106.4,2.20527]
[1625244978258,5.0,2108.7,2106.4,2.20527]
[1625244978358,2.20527,2107.1,2107.0,2.20527]
[1625244978857,2.20527,2107.1,2106.4,2.20527]
[1625244984385,2.20527,2107.1,2107.0,5.80077]
[1625244984488,2.20527,2107.3,2107.0,5.80077]
[1625244984738,2.20527,2107.3,2107.0,3.5955]
[1625244984888,2.20527,2107.3,2106.4,2.20527]
[1625244984989,4.60417,2107.3,2106.4,2.20527]
[1625244985342,4.60417,2107.3,2105.7,14.4453]
[1625244985540,47.621,2107.0,2105.7,14.4453]
[1625244985792,47.621,2107.0,2105.6,15.2998]
[1625244986347,2.20527,2106.5,2106.1,2.20527]
[1625244987608,1.0,2107.9,2106.1,2.20527]
[1625244987759,1.0,2108.5,2106.1,4.75377]
[1625244988108,51.6894,2107.5,2106.2,17.118236]
[1625244988360,2.20527,2106.8,2106.7,2.20527]
[1625244988511,51.6894,2107.5,2106.7,2.20527]
[1625244989510,56.6894,2107.5,2106.7,2.20527]
[1625244989710,51.6894,2107.5,2106.7,2.20527]
[1625244990163,51.6894,2107.5,2106.1,2.20527]
[1625244990364,2.20527,2106.3,2106.1,2.20527]
[1625244990465,5.52547,2106.3,2106.1,2.20527]
[1625244990665,64.79617,2106.3,2106.1,2.20527]
[1625244992117,5.52547,2106.3,2106.1,2.20527]
[1625244993924,5.52547,2106.3,2106.1,3.14757]
[1625244995934,2.20527,2106.3,2106.1,3.14757]
[1625244997792,1.0,2107.5,2106.1,3.14757]
[1625244997896,0.9355,2111.1,2106.1,3.14757]
[1625244997993,1.0,2108.7,2106.1,3.14757]
[1625244998096,1.0,2108.7,2106.1,2.20527]
[1625244998407,6.1,2108.6,2106.1,2.20527]
[1625244998545,2.20527,2107.2,2107.1,2.20527]
[1625244998746,2.20527,2107.2,2106.9,5.68997]
[1625244999799,2.20527,2107.2,2106.9,2.20527]
[1625245000501,2.20527,2107.0,2106.9,2.20527]
[1625245000602,5.46357,2107.0,2106.9,2.20527]
[1625245001854,5.46357,2107.0,2105.7,1.0]
[1625245001954,5.46357,2107.0,2105.6,14.8025]
[1625245002556,5.46357,2107.0,2106.5,2.20527]
[1625245002655,5.46357,2107.0,2106.3,2.20527]
[1625245004517,5.46357,2107.0,2106.9,2.20527]
[1625245004619,2.20527,2107.0,2106.9,2.20527]
[1625245005619,15.5757,2108.0,2106.9,2.20527]
[1625245005919,52.6183,2108.8,2106.9,2.20527]
[1625245006070,51.6183,2108.8,2106.9,2.20527]
[1625245006571,2.20527,2108.0,2107.6,4.51587]
[1625245007171,2.20527,2108.2,2107.6,4.51587]
[1625245007273,1.0,2109.3,2107.6,4.51587]
[1625245007372,5.0,2109.8,2107.6,4.51587]
[1625245008178,19.6445,2109.6,2107.7,17.236134]
[1625245008530,2.20527,2108.5,2108.4,2.20527]
[1625245008730,2.20527,2108.5,2107.5,2.7478]
[1625245010535,2.20527,2108.5,2108.2,2.20527]
[1625245010986,2.20527,2108.5,2108.2,5.05717]
[1625245011957,2.20527,2108.6,2108.2,5.05717]
[1625245012555,2.20527,2108.6,2108.5,2.20527]
[1625245014376,2.20527,2108.6,2107.5,2.7478]
[1625245014476,5.25717,2108.6,2106.7,54.2664]
[1625245014576,5.25717,2108.6,2108.0,2.20527]
[1625245015231,5.25717,2108.6,2106.8,1.0]
[1625245015330,5.25717,2108.6,2106.5,19.2047]
[1625245015781,5.25717,2108.6,2106.5,14.4457]
[1625245015880,5.25717,2108.6,2106.6,17.208275]
[1625245016583,5.42717,2107.8,2107.2,2.20527]
[1625245018644,5.42717,2107.8,2107.6,2.20527]
[1625245019196,5.42717,2107.8,2107.2,2.20527]
[1625245019297,52.0821,2107.7,2107.2,2.20527]
[1625245020047,52.0821,2107.7,2106.5,14.4457]
[1625245020650,5.72777,2107.2,2106.8,2.20527]
[1625245022609,2.20527,2106.9,2106.8,2.20527]
[1625245023009,40.4577,2107.9,2106.8,2.20527]
[1625245023113,1.0,2108.9,2106.8,5.27527]
[1625245023217,3.57091261,2109.8,2106.8,5.27527]
[1625245023367,1.92442869,2109.8,2106.8,5.27527]
[1625245023718,1.92587497,2110.1,2107.8,47.7278]
[1625245023818,15.5626,2109.7,2107.8,47.7278]
[1625245023918,5.0,2109.6,2107.8,47.7278]
[1625245024119,5.0,2109.6,2107.8,2.9895]
[1625245024572,2.20527,2108.8,2108.7,2.20527]
[1625245026276,15.5626,2109.7,2108.7,5.40467]
[1625245026576,2.20527,2109.4,2109.3,2.20527]
[1625245027179,48.36837,2109.4,2109.3,2.20527]
[1625245027286,48.36837,2109.4,2108.7,2.20527]
[1625245028386,51.50827,2109.4,2108.7,2.20527]
[1625245028484,5.0,2109.3,2108.7,2.20527]
[1625245028585,5.0,2109.3,2107.7,1.0]
[1625245028586,4.41054,2108.8,2107.7,1.0]
[1625245028686,5.0,2108.7,2107.6,2.20527]
[1625245028833,8.6362,2108.7,2107.6,2.20527]
[1625245029046,3.6362,2108.7,2107.6,2.20527]
[1625245029737,5.0,2108.6,2107.6,2.20527]
[1625245030239,3.6362,2108.7,2107.6,2.20527]
[1625245030337,4.41054,2108.8,2107.6,5.92927]
[1625245030687,4.41054,2108.8,2108.1,2.20527]
[1625245031541,4.41054,2108.8,2108.1,4.67407]
[1625245031846,4.41054,2108.8,2108.1,9.43307]
[1625245032698,2.20527,2108.8,2108.6,2.20527]
[1625245033457,7.20527,2108.8,2108.6,2.20527]
[1625245033555,2.20527,2108.8,2108.6,2.20527]
[1625245033856,5.0,2108.7,2108.1,2.20527]
[1625245034256,5.52177,2108.8,2108.1,2.20527]
[1625245034655,2.20527,2108.2,2108.1,2.20527]
[1625245037617,46.1631,2109.4,2108.1,4.81067]
[1625245037766,1.38380011,2109.5,2108.1,4.81067]
[1625245038265,1.93732016,2109.6,2108.1,4.81067]
[1625245038266,1.38496809,2109.6,2108.1,4.81067]
[1625245038665,2.20527,2109.3,2109.2,2.20527]
[1625245038766,2.20527,2109.3,2109.2,5.94507]
[1625245040725,4.41054,2109.3,2109.2,5.94507]
[1625245044540,65.24954031,2110.3,2109.2,5.94507]
[1625245044692,2.20527,2110.0,2109.9,2.20527]
[1625245044799,2.20527,2110.0,2109.9,5.29307]
[1625245045243,1.38471363,2110.4,2109.9,5.29307]
[1625245045449,1.38438458,2110.6,2109.9,5.29307]
[1625245045898,1.38615264,2111.2,2109.9,5.29307]
[1625245046001,1.38615264,2111.2,2110.4,59.6067]
[1625245046100,1.38615264,2111.2,2110.4,62.8473]
[1625245046302,1.38593934,2111.3,2110.4,62.8473]
[1625245046755,1.38593934,2111.3,2111.2,4.41054]
[1625245046756,3.59120934,2111.3,2111.2,4.41054]
[1625245046860,2.20527,2111.3,2111.2,4.41054]
[1625245049915,2.20527,2111.3,2110.4,3.2406]
[1625245050015,2.20527,2111.3,2109.9,3.0878]
[1625245050116,2.20527,2111.3,2109.3,1.0]
[1625245050220,2.20527,2111.3,2109.2,8.7398]
[1625245050318,2.20527,2111.3,2109.5,58.8234]
[1625245050419,2.20527,2111.3,2109.6,19.813]
[1625245050668,2.20527,2111.3,2109.6,14.813]
[1625245050769,4.41054,2111.3,2111.2,2.20527]
[1625245051272,62.54974,2111.3,2111.2,2.20527]
[1625245051521,62.54974,2111.3,2111.0,2.20527]
[1625245052221,4.41054,2111.3,2111.0,2.20527]
[1625245053388,9.41054,2111.3,2110.7,2.20527]
[1625245053534,9.41054,2111.3,2109.6,14.813]
[1625245053835,9.41054,2111.3,2109.8,51.6529]
[1625245054032,4.41054,2111.3,2109.8,51.6529]
[1625245054586,4.41054,2111.3,2109.8,55.1893]
[1625245054784,2.20527,2111.3,2111.0,2.20527]
[1625245056758,4.41054,2111.3,2111.0,2.20527]
[1625245059862,7.65344,2111.3,2111.0,2.20527]
[1625245079378,59.29914,2111.3,2111.0,2.20527]
[1625245080885,7.65344,2111.3,2111.0,2.20527]
[1625245082287,55.95594,2111.3,2111.0,2.20527]
[1625245083190,7.65344,2111.3,2111.0,2.20527]
[1625245085653,57.89394,2111.3,2111.0,2.20527]
[1625245087107,7.65344,2111.3,2111.0,2.20527]
[1625245089724,57.07914,2111.3,2111.0,2.20527]
[1625245090419,7.65344,2111.3,2111.0,2.20527]
[1625245096743,4.41054,2111.3,2111.0,2.20527]
[1625245102106,2.20527,2111.3,2111.0,2.20527]
[1625245102464,2.20527,2111.3,2111.0,54.72527]
[1625245102614,2.20527,2111.3,2111.0,2.20527]
[1625245103166,2.20527,2111.3,2111.2,2.20527]
[1625245104271,2.20527,2111.3,2111.0,2.20527]
[1625245104370,4.53997,2111.3,2111.0,2.20527]
[1625245105173,4.53997,2111.3,2111.0,4.41054]
[1625245105773,2.20527,2111.3,2111.0,4.41054]
[1625245109937,5.59867,2111.3,2111.0,4.41054]
[1625245111442,50.6775,2111.1,2111.0,4.41054]
[1625245111892,5.59867,2111.3,2111.0,4.41054]
[1625245112697,48.02817,2111.3,2111.0,4.41054]
[1625245113100,53.02817,2111.3,2109.7,1.0]
[1625245113199,53.02817,2111.3,2110.6,2.20527]
[1625245113200,5.59867,2111.3,2110.6,2.20527]
[1625245113803,5.59867,2111.3,2111.2,43.79]
[1625245114253,2.20527,2111.3,2111.2,43.79]
[1625245115104,15.5674,2112.2,2111.2,43.79]
[1625245115203,2.20527,2111.8,2111.7,2.20527]
[1625245115306,2.20527,2111.8,2111.7,3.6139]
[1625245117325,2.20527,2112.0,2111.7,3.6139]
[1625245119228,2.20527,2112.0,2111.9,2.20527]
[1625245124588,2.20527,2112.0,2111.9,45.46207]
[1625245127743,2.20527,2112.0,2111.9,2.20527]
[1625245129801,2.20527,2112.0,2111.9,54.41057]
[1625245131208,7e-05,2112.0,2111.9,54.41057]
[1625245131566,1.38964978,2112.9,2111.9,54.41057]
[1625245132065,1.38986245,2113.3,2112.0,17.24011]
[1625245132366,1.38918645,2113.4,2112.0,17.24011]
[1625245133121,1.38994593,2113.3,2112.0,17.24011]
[1625245133325,2.20527,2112.8,2112.7,2.20527]
[1625245133474,2.20527,2112.8,2112.7,5.14867]
[1625245134076,2.20527,2112.8,2112.7,53.02277]
[1625245136338,2.20527,2112.8,2112.7,5.14867]
[1625245137393,2.20527,2112.8,2112.7,48.39937]
[1625245140194,2.20527,2112.8,2112.7,5.14867]
[1625245140295,2.20527,2112.8,2112.7,2.20527]
[1625245141098,5.94297,2112.8,2112.7,2.20527]
[1625245144655,5.94297,2112.8,2111.9,53.2053]
[1625245144759,10.94297,2112.8,2111.4,1.0]
[1625245144863,10.94297,2112.8,2111.2,15.79880215]
[1625245145176,10.94297,2112.8,2111.2,14.4122]
[1625245145476,10.94297,2112.8,2111.3,2.20527]
[1625245145477,2.20527,2111.5,2111.3,2.20527]
[1625245145628,5.37027,2111.5,2111.3,2.20527]
[1625245145727,5.37027,2111.5,2110.6,1.38374532]
[1625245145932,5.37027,2111.5,2110.3,1.38434051]
[1625245146285,5.37027,2111.5,2110.2,44.31759171]
[1625245146838,5.37027,2111.5,2110.2,42.9331]
[1625245147083,5.37027,2111.5,2110.3,17.223995]
[1625245147538,2.20527,2110.5,2110.4,2.20527]
[1625245147787,2.20527,2110.5,2110.4,19.413511]
[1625245147985,1.0,2111.7,2110.4,19.413511]
[1625245148088,14.7688,2112.2,2110.4,19.413511]
[1625245148186,14.7688,2112.2,2110.4,23.711411]
[1625245148638,14.7688,2112.2,2110.4,25.0950498]
[1625245148739,15.7688,2112.2,2110.4,25.0950498]
[1625245148940,14.7688,2112.2,2111.1,48.4326]
[1625245149042,3.7377,2112.8,2111.1,48.4326]
[1625245149290,1.38762798,2113.0,2111.1,48.4326]
[1625245149490,2.20527,2111.4,2111.3,2.20527]
[1625245150295,2.20527,2111.4,2111.1,50.63787]
[1625245151498,2.20527,2111.3,2111.1,50.63787]
[1625245152100,2.20527,2111.3,2111.1,48.4326]
[1625245152800,2.20527,2111.3,2110.3,1.3851529]
[1625245153356,2.20527,2111.3,2110.4,17.118344]
[1625245153457,2.20527,2111.0,2110.7,2.20527]
[1625245154617,2.20527,2111.0,2110.9,55.747]
[1625245157226,7e-05,2111.0,2110.9,55.747]
[1625245157527,7e-05,2111.0,2110.9,57.95227]
[1625245157676,7e-05,2111.0,2110.9,75.030087]
[1625245159128,7e-05,2111.0,2110.9,57.95227]
[1625245162154,1.0,2112.2,2110.9,57.95227]
[1625245162302,1.0,2112.7,2110.9,61.34437]
[1625245162403,1.38802638,2112.8,2110.9,61.34437]
[1625245162610,1.38802638,2112.8,2111.0,17.073866]
[1625245162754,2.77607255,2113.0,2111.0,17.073866]
[1625245162755,1.38810123,2113.0,2111.0,17.073866]
[1625245162955,1.38810123,2113.0,2112.3,43.1337]
[1625245163205,1.3880254,2113.1,2112.3,43.1337]
[1625245163554,4.41054,2112.4,2112.3,43.1337]
[1625245163654,4.41054,2112.4,2111.9,2.20527]
[1625245164307,4.41054,2112.4,2112.1,40.1977]
[1625245165411,4.41054,2112.4,2111.9,2.20527]
[1625245165611,2.20527,2112.0,2111.9,2.20527]
[1625245167279,2.20527,2112.0,2111.5,56.9874]
[1625245167578,4.41054,2112.0,2111.5,56.9874]
[1625245169685,2.20527,2111.7,2111.3,2.20527]
[1625245169934,2.20527,2111.7,2110.7,1.38549272]
[1625245170034,2.20527,2111.7,2110.4,1.38712491]
[1625245170685,2.20527,2111.7,2110.5,17.178224]
[1625245170786,2.20527,2111.7,2110.5,18.132924]
[1625245170887,2.20527,2111.7,2110.9,42.0672]
[1625245170986,2.20527,2111.7,2110.9,45.8008]
[1625245171289,2.20527,2111.7,2111.0,17.240847]
[1625245171589,2.20527,2111.7,2111.6,2.20527]
[1625245171688,2.20527,2111.7,2111.6,44.25257]
[1625245171842,2.20527,2111.7,2111.6,46.61037]
[1625245173595,2.20527,2111.7,2111.6,44.25257]
[1625245173995,2.20527,2111.7,2111.6,2.20527]
[1625245175632,2.20527,2111.7,2111.6,43.17037]
[1625245175908,2.20527,2111.7,2111.6,2.20527]
[1625245176509,2.20527,2111.7,2111.6,56.60587]
[1625245176913,2.20527,2111.7,2111.6,2.20527]
[1625245178064,2.20527,2111.7,2111.6,58.57337]
[1625245178213,2.20527,2111.7,2111.6,61.61937]
[1625245180220,2.20527,2112.0,2111.6,61.61937]
[1625245180421,2.20527,2112.0,2111.6,5.25127]
[1625245180571,2.20527,2112.0,2111.6,2.20527]
[1625245181023,2.20527,2112.0,2111.7,52.3865]
[1625245181630,2.20527,2112.0,2111.9,2.20527]
[1625245181828,2.20527,2112.0,2111.9,4.70807]
[1625245181928,2.20527,2112.4,2111.9,4.70807]
[1625245182830,62.9887,2113.3,2111.9,4.70807]
[1625245182930,61.9887,2113.3,2111.9,4.70807]
[1625245183134,15.8395,2113.3,2111.9,4.70807]
[1625245183635,2.20527,2112.7,2112.5,2.20527]
[1625245186944,4.68237,2112.7,2112.5,2.20527]
[1625245187298,48.887,2112.6,2112.5,2.20527]
[1625245187545,48.887,2112.6,2111.5,1.0]
[1625245187646,48.887,2112.6,2111.2,1.39064878]
[1625245187746,2.20527,2112.1,2111.6,2.20527]
[1625245187845,5.88347,2112.1,2111.6,2.20527]
[1625245189009,5.88347,2112.1,2111.6,60.19227]
[1625245189159,5.88347,2112.1,2111.6,2.20527]
[1625245189764,2.20527,2111.7,2111.6,2.20527]
[1625245189862,5.88347,2112.1,2111.6,2.20527]
[1625245196595,5.88347,2112.1,2111.6,0.00557]
[1625245196745,5.88347,2112.1,2111.1,2.78535385]
[1625245196746,5.0,2112.0,2111.1,2.78535385]
[1625245197301,51.8589,2111.2,2111.1,2.78535385]
[1625245197398,51.8589,2111.2,2110.8,2.78612254]
[1625245197399,54.4517,2111.2,2110.8,2.78612254]
[1625245197749,4.41054,2110.9,2110.8,2.78612254]
[1625245197968,4.41054,2110.9,2110.3,2.7864184]
[1625245199665,4.41054,2110.9,2110.0,3.62305751]
[1625245199666,4.41054,2110.9,2110.2,2.7870415]
[1625245199765,2.20527,2110.3,2110.2,2.7870415]
[1625245199964,5.21777,2110.3,2110.2,2.7870415]
[1625245200717,5.21777,2110.3,2110.2,53.5834415]
[1625245200816,5.21777,2110.3,2110.2,50.7964]
[1625245201066,5.21777,2110.3,2110.2,54.42011622]
[1625245201216,2.20527,2110.9,2110.2,54.42011622]
[1625245201419,2.20527,2110.9,2110.6,5.78075593]
[1625245201768,2.20527,2110.9,2110.7,2.20527]
[1625245201869,4.41054,2110.9,2110.7,4.99244656]
[1625245201971,48.9891,2111.6,2110.7,4.99244656]
[1625245202070,48.9891,2111.6,2110.7,22.07851756]
[1625245202374,81.0142,2112.2,2110.8,2.7871896]
[1625245202618,81.0142,2112.2,2110.9,2.78889377]
[1625245203271,18.29560095,2112.5,2110.9,2.78889377]
[1625245203573,18.29560095,2112.5,2111.0,2.78871413]
[1625245203823,2.20527,2112.0,2111.9,2.20527]
[1625245203924,2.20527,2112.0,2111.9,5.59187]
[1625245204332,1.53687,2112.0,2111.9,45.69927]
[1625245204423,0.83347,2112.0,2111.9,45.69927]
[1625245205784,0.83347,2112.0,2111.9,5.59187]
[1625245206284,0.83347,2112.0,2111.9,50.15857]
[1625245206940,2.20527,2112.2,2111.9,50.15857]
[1625245207039,2.7811461,2113.1,2111.9,50.15857]
[1625245207140,2.78435727,2113.2,2111.9,50.15857]
[1625245207393,2.78435727,2113.2,2112.0,17.310732]
[1625245207641,17.26476093,2113.3,2112.0,17.310732]
[1625245207841,2.20527,2112.8,2112.7,2.20527]
[1625245208292,2.20527,2112.8,2111.9,47.9533]
[1625245208942,2.20527,2112.8,2112.0,17.178164]
[1625245209899,2.20527,2112.8,2112.6,2.20527]
[1625245212702,2.20527,2112.8,2112.6,50.71177]
[1625245213002,2.20527,2112.8,2112.6,2.20527]
[1625245220180,2.20527,2112.8,2112.6,56.48937]
[1625245220330,2.20527,2112.8,2112.6,58.96797]
[1625245220843,2.20527,2112.8,2112.7,17.2447]
[1625245222755,2.20527,2113.0,2112.7,17.2447]
[1625245224008,2.20527,2113.0,2112.9,2.20527]
[1625245224360,2.78519073,2114.0,2112.9,19.309788]
[1625245224660,2.78432304,2114.1,2112.9,19.309788]
[1625245225072,2.78367378,2114.6,2112.9,19.309788]
[1625245225167,2.78367378,2114.6,2113.8,48.2404]
[1625245225270,20.27334756,2115.2,2113.8,48.2404]
[1625245225271,2.78376007,2114.5,2113.8,48.2404]
[1625245225669,20.27334756,2115.2,2113.8,48.2404]
[1625245225670,2.783712,2114.6,2113.8,48.2404]
[1625245225968,2.20527,2114.3,2114.2,2.20527]
[1625245227972,4.41054,2114.3,2114.2,2.20527]
[1625245236150,6.41054,2114.3,2114.2,2.20527]
[1625245241878,8.72674,2114.3,2114.2,2.20527]
[1625245242685,8.72674,2114.3,2113.3,70.4024]
[1625245243488,8.72674,2114.3,2112.7,1.0]
[1625245243634,8.72674,2114.3,2112.6,54.2841]
[1625245244234,5.84647,2113.8,2113.6,2.20527]
[1625245245586,46.1668,2113.7,2113.6,2.20527]
[1625245245790,5.84647,2113.8,2113.6,2.20527]
[1625245246187,2.20527,2113.7,2113.6,2.20527]
[1625245246487,2.20527,2113.7,2112.6,1.0]
[1625245246588,2.20527,2113.7,2112.0,15.3119]
[1625245246692,2.20527,2113.7,2112.1,1.0]
[1625245247152,2.20527,2113.7,2112.3,0.9485]
[1625245247503,2.20527,2113.7,2112.1,1.0]
[1625245248154,2.20527,2113.4,2113.3,2.20527]
[1625245253726,2.20527,2113.4,2112.1,1.0]
[1625245253879,2.20527,2113.4,2111.9,2.77491454]
[1625245254279,4.65197,2112.3,2112.2,2.20527]
[1625245255231,2.4467,2112.3,2112.2,2.20527]
[1625245255380,2.77359036,2114.0,2112.2,2.20527]
[1625245255884,2.77359036,2114.0,2112.3,17.199149]
[1625245255986,15.0285,2114.2,2113.5,42.7963]
[1625245256183,15.0285,2114.2,2113.6,2.20527]
[1625245256184,2.20527,2113.8,2113.6,2.20527]
[1625245258287,2.20527,2113.8,2113.6,3.14997]
[1625245258688,2.20527,2113.8,2113.6,2.20527]
[1625245259641,4.94637,2113.8,2113.4,2.20527]
[1625245262197,4.94637,2113.8,2113.7,2.20527]
[1625245264505,2.20527,2114.0,2113.7,2.20527]
[1625245266260,2.20527,2114.0,2113.9,2.20527]
[1625245266459,2.20527,2114.0,2113.9,57.61897]
[1625245267465,2.20527,2114.0,2113.9,2.20527]
[1625245268875,2.20527,2114.0,2113.9,45.34347]
[1625245271030,2.20527,2114.0,2113.9,2.20527]
[1625245271380,5.30017,2114.0,2113.9,2.20527]
[1625245275642,5.30017,2114.0,2113.9,47.86077]
[1625245277097,5.30017,2114.0,2113.9,2.20527]
[1625245279003,3.0949,2114.0,2113.9,2.20527]
[1625245279105,2.0,2114.3,2113.9,5.62977]
[1625245280353,2.0,2114.3,2114.2,2.20527]
[1625245281765,2.0,2114.3,2113.9,2.20527]
[1625245281915,5.1051,2114.3,2113.9,2.20527]
[1625245282414,2.20527,2114.0,2113.9,2.20527]
[1625245282870,2.20527,2114.0,2113.7,2.20527]
[1625245284383,4.41054,2114.0,2113.7,2.20527]
[1625245284935,4.41054,2114.0,2113.9,59.2446]
[1625245285635,4.41054,2114.0,2113.7,2.20527]
[1625245286240,4.41054,2114.0,2113.7,58.13107]
[1625245287846,4.41054,2114.0,2113.5,2.20527]
[1625245287948,4.41054,2114.0,2112.9,1.0]
[1625245288099,4.41054,2114.0,2112.6,1.0]
[1625245288199,4.41054,2114.0,2112.5,15.7422]
[1625245288355,2.20527,2113.2,2113.1,2.20527]
[1625245288449,5.93627,2113.2,2113.1,2.20527]
[1625245290399,8.14154,2113.2,2113.1,2.20527]
[1625245290904,5.93627,2113.2,2113.1,2.20527]
[1625245292215,5.93627,2113.2,2112.9,2.20527]
[1625245292365,2.20527,2113.0,2112.9,2.20527]
[1625245294327,2.20527,2113.0,2112.9,3.13857]
[1625245294594,5.93627,2113.2,2112.9,2.20527]
[1625245295036,5.93627,2113.2,2113.1,55.1173]
[1625245295137,5.93627,2113.2,2112.9,2.20527]
[1625245296387,5.93627,2113.2,2113.1,2.20527]
[1625245300046,5.93627,2113.2,2113.1,46.15037]
[1625245300245,3.731,2113.2,2113.1,46.15037]
[1625245300345,1.0,2114.1,2113.1,46.15037]
[1625245300445,2.20527,2113.8,2113.1,46.15037]
[1625245302252,2.20527,2113.8,2113.1,48.93259897]
[1625245302448,2.20527,2113.8,2113.7,2.20527]
[1625245304106,2.20527,2114.0,2113.7,2.20527]
[1625245304351,2.0,2114.3,2113.7,2.20527]
[1625245304501,4.20527,2114.3,2114.2,2.20527]
[1625245304953,4.20527,2114.3,2114.2,49.03087]
[1625245305303,4.20527,2114.3,2114.2,2.20527]
[1625245306055,5.14577,2114.3,2114.2,3.15977]
[1625245306306,4.20527,2114.3,2114.2,2.20527]
[1625245310485,4.20527,2114.3,2114.2,4.41054]
[1625245311754,7.19587,2114.3,2114.2,4.41054]
[1625245315524,7.19587,2114.3,2114.2,5.35814]
[1625245315826,7.19587,2114.3,2114.2,0.9476]
[1625245316677,7.19587,2114.3,2114.1,54.15667]
[1625245316828,7.19587,2114.3,2113.9,2.20527]
[1625245318632,2.20527,2114.0,2113.9,2.20527]
[1625245320836,4.20527,2114.3,2113.9,2.20527]
[1625245322640,4.20527,2114.3,2114.2,2.20527]
[1625245329631,2.0,2114.3,2114.2,2.20527]
[1625245329932,2.7851233,2115.3,2114.2,2.20527]
[1625245330082,2.78452522,2115.7,2114.2,2.20527]
[1625245330231,1.36652522,2115.7,2114.2,2.20527]
[1625245330332,1.36652522,2115.7,2114.2,19.327051]
[1625245330439,1.36652522,2115.7,2115.6,52.1255]
[1625245330535,3.61936903,2116.3,2115.6,52.1255]
[1625245330632,3.61936903,2116.3,2115.6,54.7871]
[1625245330734,2.20527,2115.9,2115.8,2.20527]
[1625245332688,4.41054,2115.9,2115.8,2.20527]
[1625245335243,57.17794,2115.9,2115.8,2.20527]
[1625245337300,57.17794,2115.9,2115.8,5.95177]
[1625245339708,54.97267,2115.9,2115.8,5.95177]
[1625245341332,2.20527,2115.9,2115.8,5.95177]
[1625245341483,14.6735,2116.7,2115.8,5.95177]
[1625245341584,3.60377459,2117.5,2115.8,5.95177]
[1625245341585,1.0,2117.4,2115.8,5.95177]
[1625245341683,3.60377459,2117.5,2115.8,5.95177]
[1625245341783,3.60377459,2117.5,2115.8,6.95177]
[1625245342084,3.60377459,2117.5,2115.9,39.9014]
[1625245342185,3.60377459,2117.5,2115.9,57.127297]
[1625245342739,1.0,2117.7,2117.0,2.20527]
[1625245342835,2.20527,2117.1,2117.0,4.65077]
[1625245343588,15.4888,2118.0,2117.0,4.65077]
[1625245343841,5.0,2118.2,2117.0,4.65077]
[1625245343939,5.0,2118.2,2117.1,40.1224]
[1625245344844,5.0,2118.2,2118.1,2.20527]
[1625245344945,5.0,2118.2,2118.1,5.76957]
[1625245345095,5.0,2118.2,2118.1,3.5643]
[1625245345698,5.0,2118.2,2118.1,60.4091]
[1625245346797,5.0,2118.2,2118.1,64.81964]
[1625245346901,5.0,2118.2,2118.1,7.97484]
[1625245347449,5.0,2118.2,2118.1,64.84534]
[1625245347752,15.1024,2118.9,2118.1,64.84534]
[1625245347852,15.1024,2118.9,2118.1,81.944054]
[1625245348153,4.58399616,2120.2,2118.1,81.944054]
[1625245348255,4.58399616,2120.2,2118.2,1.0]
[1625245348453,4.58399616,2120.2,2118.3,17.166287]
[1625245348605,5.0,2120.1,2118.3,18.166287]
[1625245348702,6.0,2120.1,2118.3,18.166287]
[1625245348803,2.20527,2118.8,2118.4,2.20527]
[1625245349103,2.20527,2118.8,2118.6,46.5526]
[1625245349303,2.20527,2118.8,2118.6,49.3207]
[1625245350058,2.20527,2118.8,2118.6,2.7681]
[1625245350308,2.20527,2118.8,2118.4,2.20527]
[1625245350410,5.0,2118.7,2117.4,1.0]